fUSD/lending_fUSD_20240919
["ID","MTS","AMOUNT","RATE_DAILY","PERIOD"]
[338558660,1726733450379,-505.64,0.00013884,2]
[338558661,1726733450388,-500.0,0.00013884,2]
[338558662,1726733450399,-642.39,0.00013884,2]
[338558663,1726733450409,-500.0,0.00013884,2]
[338558664,1726733450418,-500.0,0.00013884,2]
[338558665,1726733450427,-609.45,0.00013884,2]
[338558666,1726733450439,-612.72,0.00013884,2]
[338558667,1726733450449,-500.0,0.00013884,2]
[338558668,1726733450459,-500.0,0.00013884,2]
[338558669,1726733450468,-500.0,0.00013884,2]
[338558670,1726733450478,-500.0,0.00013884,2]
[338558671,1726733450487,-500.0,0.00013884,2]
[338558672,1726733450497,-682.86,0.00013884,2]
[338558673,1726733450507,-734.94,0.00013884,2]
[338558674,1726733450517,-500.0,0.00013884,2]
[338558675,1726733450526,-500.0,0.00013884,2]
[338558676,1726733450536,-500.0,0.00013884,2]
[338558677,1726733450546,-500.0,0.00013884,2]
[338558678,1726733450555,-500.0,0.00013884,2]
[338558679,1726733450565,-500.0,0.00013884,2]
[338558680,1726733450575,-587.74,0.00013884,2]
[338558681,1726733450586,-500.0,0.00013884,2]
[338558682,1726733450597,-500.0,0.00013884,2]
[338558683,1726733450607,-487.90323371,0.00013884,2]
[338558684,1726733450617,-500.0,0.00013884,2]
[338558685,1726733450627,-721.59,0.00013884,2]
[338558686,1726733450638,-500.0,0.00013884,2]
[338558687,1726733450648,-500.0,0.00013884,2]
[338558688,1726733450658,-500.0,0.00013884,2]
[338558689,1726733450668,-500.0,0.00013884,2]
[338558690,1726733450677,-500.0,0.00013884,2]
[338558691,1726733450687,-500.0,0.00013884,2]
[338558692,1726733450698,-500.0,0.00013884,2]
[338558693,1726733450707,-500.0,0.00013884,2]
[338558694,1726733450717,-500.0,0.00013884,2]
[338558695,1726733450727,-636.81,0.00013884,2]
[338558696,1726733450737,-500.0,0.00013884,2]
[338558697,1726733450746,-500.0,0.00013884,2]
[338558698,1726733450756,-1075.05,0.00013884,2]
[338558699,1726733450765,-500.0,0.00013884,2]
[338558700,1726733450775,-500.0,0.00013884,2]
[338558701,1726733450785,-500.0,0.00013884,2]
[338558702,1726733450796,-570.19262354,0.00013884,2]
[338558703,1726733450805,-500.0,0.00013884,2]
[338558704,1726733450815,-500.0,0.00013884,2]
[338558705,1726733450825,-500.0,0.00013884,2]
[338558706,1726733450834,-549.87,0.00013884,2]
[338558707,1726733450843,-500.0,0.00013884,2]
[338558708,1726733450853,-500.0,0.00013884,2]
[338558709,1726733450862,-500.0,0.00013884,2]
[338558710,1726733450871,-500.0,0.00013884,2]
[338558711,1726733450881,-500.0,0.00013884,2]
[338558712,1726733450890,-500.0,0.00013884,2]
[338558713,1726733450900,-500.0,0.00013884,2]
[338558714,1726733450910,-500.0,0.00013884,2]
[338558715,1726733450919,-500.0,0.00013884,2]
[338558716,1726733450929,-500.0,0.00013884,2]
[338558717,1726733450939,-500.0,0.00013884,2]
[338558718,1726733450949,-500.0,0.00013884,2]
[338558719,1726733450958,-500.0,0.00013884,2]
[338558720,1726733450968,-500.0,0.00013884,2]
[338558721,1726733450978,-500.0,0.00013884,2]
[338558722,1726733450988,-500.0,0.00013884,2]
[338558723,1726733450998,-500.0,0.00013884,2]
[338558724,1726733451008,-500.0,0.00013884,2]
[338558725,1726733451017,-643.52,0.00013884,2]
[338558726,1726733451027,-500.0,0.00013884,2]
[338558727,1726733451037,-672.58,0.00013884,2]
[338558728,1726733451048,-500.0,0.00013884,2]
[338558729,1726733451057,-500.0,0.00013884,2]
[338558730,1726733451066,-500.0,0.00013884,2]
[338558731,1726733451075,-382.73457415,0.00013884,2]
[338558732,1726733451084,-783.51,0.00013884,2]
[338558733,1726733451093,-482.00715956,0.00013884,2]
[338558734,1726733451102,-500.0,0.00013884,2]
[338558735,1726733451111,-500.0,0.00013884,2]
[338558736,1726733451120,-745.05,0.00013884,2]
[338558737,1726733451129,-614.51,0.00013884,2]
[338558738,1726733451138,-943.71,0.00013884,2]
[338558739,1726733451147,-500.0,0.00013884,2]
[338558740,1726733451156,-1209.81,0.00013884,2]
[338558741,1726733451165,-528.89,0.00013884,2]
[338558742,1726733451174,-500.0,0.00013884,2]
[338558743,1726733451183,-500.0,0.00013884,2]
[338558744,1726733451193,-641.28,0.00013884,2]
[338558745,1726733451202,-500.0,0.00013884,2]
[338558746,1726733451211,-500.0,0.00013884,2]
[338558747,1726733451220,-849.17,0.00013884,2]
[338558748,1726733451229,-500.0,0.00013884,2]
[338558749,1726733451239,-500.0,0.00013884,2]
[338558750,1726733451248,-605.27,0.00013884,2]
[338558751,1726733451257,-3100.0,0.000139,5]
[338558752,1726733451266,-31992.6353518,0.000139,2]
[338558753,1726733451275,-695.78,0.00013984,2]
[338558754,1726733451284,-500.0,0.00013984,2]
[338558755,1726733451294,-500.0,0.00013984,2]
[338558756,1726733451307,-554.7645875,0.00013984,2]
[338558757,1726733451315,-610.93,0.00013984,2]
[338558758,1726733451325,-500.0,0.00013984,2]
[338558759,1726733451334,-500.0,0.00013984,2]
[338558760,1726733451343,-500.0,0.00013984,2]
[338558761,1726733451353,-993.17,0.00013984,2]
[338558762,1726733451367,-500.0,0.00013984,2]
[338558763,1726733451376,-500.0,0.00013984,2]
[338558764,1726733451385,-500.0,0.00013984,2]
[338558765,1726733451394,-500.0,0.00013984,2]
[338558766,1726733451405,-509.22,0.00013984,2]
[338558767,1726733451414,-508.45,0.00013984,2]
[338558768,1726733451424,-500.0,0.00013984,2]
[338558769,1726733451433,-500.0,0.00013984,2]
[338558770,1726733451443,-500.0,0.00013984,2]
[338558771,1726733451453,-500.0,0.00013984,2]
[338558772,1726733451462,-500.0,0.00013984,2]
[338558773,1726733451473,-500.0,0.00013984,2]
[338558774,1726733451483,-555.56,0.00013984,2]
[338558775,1726733451492,-500.0,0.00013984,2]
[338558776,1726733451501,-500.0,0.00013984,2]
[338558777,1726733451511,-500.0,0.00013984,2]
[338558778,1726733451522,-500.0,0.00013984,2]
[338558779,1726733451531,-500.0,0.00013984,2]
[338558780,1726733451545,-500.0,0.00013984,2]
[338558781,1726733451555,-500.0,0.00013984,2]
[338558782,1726733451564,-304.71973309,0.00013984,2]
[338558783,1726733451573,-513.77,0.00013984,2]
[338558784,1726733451582,-500.0,0.00013984,2]
[338558785,1726733451591,-500.0,0.00013984,2]
[338558786,1726733451600,-500.0,0.00013984,2]
[338558787,1726733451609,-500.0,0.00013984,2]
[338558788,1726733451618,-536.2,0.00013984,2]
[338558789,1726733451628,-500.0,0.00013984,2]
[338558790,1726733451638,-500.0,0.00013984,2]
[338558791,1726733451647,-500.0,0.00013984,2]
[338558792,1726733451656,-500.0,0.00013984,2]
[338558793,1726733451665,-500.0,0.00013984,2]
[338558794,1726733451675,-642.0,0.00013984,2]
[338558795,1726733451684,-500.0,0.00013984,2]
[338558796,1726733451693,-878.46,0.00013984,2]
[338558797,1726733451703,-500.0,0.00013984,2]
[338558798,1726733451712,-500.0,0.00013984,2]
[338558799,1726733451721,-500.0,0.00013984,2]
[338558800,1726733451730,-500.0,0.00013984,2]
[338558801,1726733451739,-500.0,0.00013984,2]
[338558802,1726733451749,-500.0,0.00013984,2]
[338558803,1726733451758,-500.0,0.00013984,2]
[338558804,1726733451768,-512.2,0.00013984,2]
[338558805,1726733451777,-738.29,0.00013984,2]
[338558806,1726733451787,-954.14,0.00013984,2]
[338558807,1726733451798,-500.0,0.00013984,2]
[338558808,1726733451807,-500.0,0.00013984,2]
[338558809,1726733451816,-500.0,0.00013984,2]
[338558810,1726733451826,-500.0,0.00013984,2]
[338558811,1726733451836,-897.37,0.00013984,2]
[338558812,1726733451845,-500.0,0.00013984,2]
[338558813,1726733451855,-500.0,0.00013984,2]
[338558814,1726733451865,-500.0,0.00013984,2]
[338558815,1726733451874,-695.2,0.00013984,2]
[338558816,1726733451883,-522.46,0.00013984,2]
[338558817,1726733451893,-500.0,0.00013984,2]
[338558818,1726733451902,-868.83,0.00013984,2]
[338558819,1726733451911,-500.0,0.00013984,2]
[338558820,1726733451921,-500.0,0.00013984,2]
[338558821,1726733451933,-500.0,0.00013984,2]
[338558822,1726733451943,-1326.93,0.00013984,2]
[338558823,1726733451952,-674.02,0.00013984,2]
[338558824,1726733451962,-500.0,0.00013984,2]
[338558825,1726733451972,-500.0,0.00013984,2]
[338558826,1726733451980,-500.0,0.00013984,2]
[338558827,1726733451989,-500.0,0.00013984,2]
[338558828,1726733452000,-1881.36,0.00013984,2]
[338558829,1726733452011,-500.0,0.00013984,2]
[338558830,1726733452022,-500.0,0.00013984,2]
[338558831,1726733452032,-627.83,0.00013984,2]
[338558832,1726733452044,-500.0,0.00013984,2]
[338558833,1726733452054,-525.93,0.00013984,2]
[338558834,1726733452063,-507.37,0.00013984,2]
[338558835,1726733452072,-500.0,0.00013984,2]
[338558836,1726733452081,-500.0,0.00013984,2]
[338558837,1726733452091,-537.85,0.00013984,2]
[338558838,1726733452100,-500.0,0.00013984,2]
[338558839,1726733452110,-706.39,0.00013984,2]
[338558840,1726733452119,-500.0,0.00013984,2]
[338558841,1726733452129,-500.0,0.00013984,2]
[338558842,1726733452138,-700.0,0.00013984,2]
[338558843,1726733452147,-500.0,0.00013984,2]
[338558844,1726733452156,-500.0,0.00013984,2]
[338558845,1726733452167,-1720.07,0.00013984,2]
[338558846,1726733452176,-500.0,0.00013984,2]
[338558847,1726733452185,-616.49,0.00013984,2]
[338558848,1726733452194,-500.0,0.00013984,2]
[338558849,1726733452204,-906.75,0.00013984,2]
[338558850,1726733452214,-500.0,0.00013984,2]
[338558851,1726733452223,-500.0,0.00013984,2]
[338558852,1726733452233,-642.85,0.00013984,2]
[338558853,1726733452244,-500.0,0.00013984,2]
[338558854,1726733452253,-500.0,0.00013985,2]
[338558855,1726733452262,-500.0,0.00013985,2]
[338558856,1726733452272,-500.0,0.00013985,2]
[338558857,1726733452281,-500.0,0.00013985,2]
[338558858,1726733452291,-500.0,0.00013985,2]
[338558859,1726733452300,-310.439582,0.00014,2]
[338558860,1726733452310,-1013.444989,0.00014,2]
[338558861,1726733452321,-561.96063708,0.00014004,2]
[338558862,1726733452331,-688.0,0.00014012,2]
[338558863,1726733452341,-420.0,0.00014026,2]
[338558864,1726733452351,-421.86233158,0.00014083,2]
[338558865,1726733452364,-880.53,0.00014157,2]
[338558866,1726733452374,-500.0,0.00014157,2]
[338558867,1726733452383,-500.0,0.00014157,2]
[338558868,1726733452394,-500.0,0.00014157,2]
[338558869,1726733452403,-500.0,0.00014157,2]
[338558870,1726733452412,-500.0,0.00014157,2]
[338558871,1726733452421,-500.0,0.00014157,2]
[338558872,1726733452433,-1038.92,0.00014157,2]
[338558873,1726733452442,-515.94,0.00014157,2]
[338558874,1726733452452,-500.0,0.00014157,2]
[338558875,1726733452460,-500.0,0.00014157,2]
[338558876,1726733452471,-500.0,0.00014157,2]
[338558877,1726733452480,-972.03,0.00014157,2]
[338558878,1726733452489,-2893.75,0.00014157,2]
[338558879,1726733452499,-991.73,0.00014157,2]
[338558880,1726733452508,-500.0,0.00014157,2]
[338558881,1726733452517,-547.9,0.00014157,2]
[338558882,1726733452526,-500.0,0.00014157,2]
[338558883,1726733452536,-500.0,0.00014157,2]
[338558884,1726733452546,-500.0,0.00014157,2]
[338558885,1726733452555,-4265.64,0.00014157,2]
[338558886,1726733452565,-596.86,0.00014157,2]
[338558887,1726733452574,-500.0,0.00014157,2]
[338558888,1726733452583,-500.0,0.00014157,2]
[338558889,1726733452593,-993.18,0.00014157,2]
[338558890,1726733452602,-13243.4,0.00014157,2]
[338558891,1726733452612,-873.67,0.00014157,2]
[338558892,1726733452621,-1065.45,0.00014157,2]
[338558893,1726733452631,-1313.44,0.00014157,2]
[338558894,1726733452640,-2360.59,0.00014157,2]
[338558895,1726733452649,-1584.91,0.00014157,2]
[338558896,1726733452659,-500.0,0.00014157,2]
[338558897,1726733452668,-1243.35,0.00014157,2]
[338558898,1726733452677,-1457.82,0.00014157,2]
[338558899,1726733452687,-500.0,0.00014157,2]
[338558900,1726733452697,-500.0,0.00014157,2]
[338558901,1726733452708,-952.05,0.00014157,2]
[338558902,1726733452718,-500.87,0.00014157,2]
[338558903,1726733452727,-733.48,0.00014157,2]
[338558904,1726733452736,-863.21,0.00014157,2]
[338558905,1726733452746,-1269.16,0.00014157,2]
[338558906,1726733452755,-589.4,0.00014157,2]
[338558907,1726733452765,-1055.46,0.00014157,2]
[338558908,1726733452774,-1061.98,0.00014157,2]
[338558909,1726733452783,-500.0,0.00014157,2]
[338558910,1726733452794,-2844.65,0.00014157,2]
[338558911,1726733452803,-500.0,0.00014157,2]
[338558912,1726733452812,-593.82,0.00014157,2]
[338558913,1726733452822,-680.98,0.00014157,2]
[338558914,1726733452831,-1168.28,0.00014157,2]
[338558915,1726733452840,-1783.74,0.00014157,2]
[338558916,1726733452850,-878.88,0.00014157,2]
[338558917,1726733452860,-500.0,0.00014157,2]
[338558918,1726733452869,-675.46,0.00014157,2]
[338558919,1726733452879,-500.0,0.00014157,2]
[338558920,1726733452889,-781.22,0.00014157,2]
[338558921,1726733452900,-917.57,0.00014157,2]
[338558922,1726733452909,-500.0,0.00014157,2]
[338558923,1726733452918,-500.0,0.00014157,2]
[338558924,1726733452928,-1397.75,0.00014157,2]
[338558925,1726733452938,-791.33,0.00014157,2]
[338558926,1726733452947,-500.0,0.00014157,2]
[338558927,1726733452957,-789.01,0.00014157,2]
[338558928,1726733452966,-500.0,0.00014157,2]
[338558929,1726733452975,-551.28,0.00014157,2]
[338558930,1726733452984,-1065.78,0.00014157,2]
[338558931,1726733452994,-500.0,0.00014157,2]
[338558932,1726733453003,-852.97,0.00014157,2]
[338558933,1726733453013,-539.84,0.00014157,2]
[338558934,1726733453022,-500.0,0.00014157,2]
[338558935,1726733453031,-500.0,0.00014157,2]
[338558936,1726733453040,-500.0,0.00014157,2]
[338558937,1726733453051,-714.42,0.00014157,2]
[338558938,1726733453061,-507.87,0.00014158,2]
[338558939,1726733453070,-500.0,0.00014158,2]
[338558940,1726733453080,-500.0,0.00014158,2]
[338558941,1726733453090,-500.0,0.00014158,2]
[338558942,1726733453099,-500.0,0.00014158,2]
[338558943,1726733453108,-572.7376241,0.00014158,2]
[338558944,1726733453118,-500.0,0.00014158,2]
[338558945,1726733453127,-500.0,0.00014158,2]
[338558946,1726733453137,-500.0,0.00014158,2]
[338558947,1726733453147,-500.0,0.00014158,2]
[338558948,1726733453157,-500.0,0.00014158,2]
[338558949,1726733453166,-500.0,0.00014158,2]
[338558950,1726733453176,-500.0,0.00014158,2]
[338558951,1726733453186,-546.58,0.00014158,2]
[338558952,1726733453195,-500.0,0.00014158,2]
[338558953,1726733453205,-298.91045488,0.00014158,2]
[338558954,1726733453214,-500.0,0.00014158,2]
[338558955,1726733453223,-500.0,0.00014158,2]
[338558956,1726733453233,-500.0,0.00014158,2]
[338558957,1726733453242,-185.13549388,0.00014158,2]
[338558958,1726733453252,-500.0,0.00014158,2]
[338558959,1726733453262,-500.0,0.00014158,2]
[338558960,1726733453271,-500.0,0.00014158,2]
[338558961,1726733453280,-500.0,0.00014158,2]
[338558962,1726733453289,-727.21,0.00014158,2]
[338558963,1726733453299,-500.0,0.00014158,2]
[338558964,1726733453309,-543.96,0.00014158,2]
[338558965,1726733453318,-500.0,0.00014158,2]
[338558966,1726733453328,-505.64,0.00014158,2]
[338558967,1726733453338,-500.0,0.00014158,2]
[338558968,1726733453348,-642.39,0.00014158,2]
[338558969,1726733453359,-500.0,0.00014158,2]
[338558970,1726733453368,-500.0,0.00014158,2]
[338558971,1726733453378,-609.45,0.00014158,2]
[338558972,1726733453387,-612.72,0.00014158,2]
[338558973,1726733453398,-500.0,0.00014158,2]
[338558974,1726733453408,-500.0,0.00014158,2]
[338558975,1726733453418,-500.0,0.00014158,2]
[338558976,1726733453427,-500.0,0.00014158,2]
[338558977,1726733453438,-500.0,0.00014158,2]
[338558978,1726733453447,-682.86,0.00014158,2]
[338558979,1726733453456,-734.94,0.00014158,2]
[338558980,1726733453466,-500.0,0.00014158,2]
[338558981,1726733453475,-460.56340147,0.00014158,2]
[338558982,1726733453485,-500.0,0.00014158,2]
[338558983,1726733453494,-500.0,0.00014158,2]
[338558984,1726733453503,-500.0,0.00014158,2]
[338558985,1726733453513,-500.0,0.00014158,2]
[338558986,1726733453522,-587.74,0.00014158,2]
[338558987,1726733453532,-500.0,0.00014158,2]
[338558988,1726733453541,-500.0,0.00014158,2]
[338558989,1726733453551,-500.0,0.00014158,2]
[338558990,1726733453560,-721.59,0.00014158,2]
[338558991,1726733453570,-500.0,0.00014158,2]
[338558992,1726733453579,-500.0,0.00014158,2]
[338558993,1726733453589,-500.0,0.00014158,2]
[338558994,1726733453598,-500.0,0.00014158,2]
[338558995,1726733453607,-500.0,0.00014158,2]
[338558996,1726733453617,-500.0,0.00014158,2]
[338558997,1726733453626,-500.0,0.00014158,2]
[338558998,1726733453635,-500.0,0.00014158,2]
[338558999,1726733453645,-500.0,0.00014158,2]
[338559000,1726733453654,-636.81,0.00014158,2]
[338559001,1726733453663,-500.0,0.00014158,2]
[338559002,1726733453672,-500.0,0.00014158,2]
[338559003,1726733453682,-1075.05,0.00014158,2]
[338559004,1726733453691,-500.0,0.00014158,2]
[338559005,1726733453700,-500.0,0.00014158,2]
[338559006,1726733453709,-500.0,0.00014158,2]
[338559007,1726733453719,-500.0,0.00014158,2]
[338559008,1726733453728,-500.0,0.00014158,2]
[338559009,1726733453737,-500.0,0.00014158,2]
[338559010,1726733453747,-549.87,0.00014158,2]
[338559011,1726733453756,-641.80067466,0.00014158,2]
[338559012,1726733453765,-500.0,0.00014158,2]
[338559013,1726733453775,-500.0,0.00014158,2]
[338559014,1726733453785,-500.0,0.00014158,2]
[338559015,1726733453796,-500.0,0.00014158,2]
[338559016,1726733453805,-500.0,0.00014158,2]
[338559017,1726733453814,-500.0,0.00014158,2]
[338559018,1726733453823,-500.0,0.00014158,2]
[338559019,1726733453833,-500.0,0.00014158,2]
[338559020,1726733453842,-500.0,0.00014158,2]
[338559021,1726733453851,-500.0,0.00014158,2]
[338559022,1726733453860,-500.0,0.00014158,2]
[338559023,1726733453869,-500.0,0.00014158,2]
[338559024,1726733453878,-500.0,0.00014158,2]
[338559025,1726733453887,-500.0,0.00014158,2]
[338559026,1726733453897,-500.0,0.00014158,2]
[338559027,1726733453906,-500.0,0.00014158,2]
[338559028,1726733453916,-500.0,0.00014158,2]
[338559029,1726733453925,-643.52,0.00014158,2]
[338559030,1726733453934,-500.0,0.00014158,2]
[338559031,1726733453943,-672.58,0.00014158,2]
[338559032,1726733453952,-500.0,0.00014158,2]
[338559033,1726733453962,-500.0,0.00014158,2]
[338559034,1726733453971,-249.00369809,0.00014158,2]
[338559035,1726733453980,-783.51,0.00014158,2]
[338559036,1726733453989,-500.0,0.00014158,2]
[338559037,1726733453999,-500.0,0.00014158,2]
[338559038,1726733454009,-745.05,0.00014158,2]
[338559039,1726733454019,-614.51,0.00014158,2]
[338559040,1726733454028,-943.71,0.00014158,2]
[338559041,1726733454037,-500.0,0.00014158,2]
[338559042,1726733454047,-1209.81,0.00014158,2]
[338559043,1726733454058,-528.89,0.00014158,2]
[338559044,1726733454067,-500.0,0.00014158,2]
[338559045,1726733454078,-500.0,0.00014158,2]
[338559046,1726733454088,-641.28,0.00014158,2]
[338559047,1726733454101,-500.0,0.00014158,2]
[338559048,1726733454111,-500.0,0.00014158,2]
[338559049,1726733454121,-849.17,0.00014158,2]
[338559050,1726733454130,-340.40522612,0.00014158,2]
[338559051,1726733454141,-500.0,0.00014158,2]
[338559052,1726733454151,-605.27,0.00014158,2]
[338559053,1726733454161,-357.78,0.00014192,2]
[338559054,1726733454171,-695.78,0.00014258,2]
[338559055,1726733454181,-500.0,0.00014258,2]
[338559056,1726733454191,-500.0,0.00014258,2]
[338559057,1726733454201,-610.93,0.00014258,2]
[338559058,1726733454212,-500.0,0.00014258,2]
[338559059,1726733454222,-500.0,0.00014258,2]
[338559060,1726733454233,-500.0,0.00014258,2]
[338559061,1726733454243,-993.17,0.00014258,2]
[338559062,1726733454253,-500.0,0.00014258,2]
[338559063,1726733454263,-484.26962583,0.00014258,2]
[338559064,1726733454273,-500.0,0.00014258,2]
[338559065,1726733454283,-500.0,0.00014258,2]
[338559066,1726733454294,-509.22,0.00014258,2]
[338559067,1726733454303,-508.45,0.00014258,2]
[338559068,1726733454313,-500.0,0.00014258,2]
[338559069,1726733454323,-500.0,0.00014258,2]
[338559070,1726733454436,-500.0,0.00014258,2]
[338559071,1726733454446,-500.0,0.00014258,2]
[338559072,1726733454456,-500.0,0.00014258,2]
[338559073,1726733454465,-500.0,0.00014258,2]
[338559074,1726733454475,-555.56,0.00014258,2]
[338559075,1726733454484,-500.0,0.00014258,2]
[338559076,1726733454494,-500.0,0.00014258,2]
[338559077,1726733454503,-500.0,0.00014258,2]
[338559078,1726733454514,-500.0,0.00014258,2]
[338559079,1726733454524,-500.0,0.00014258,2]
[338559080,1726733454533,-216.43702862,0.00014258,2]
[338559081,1726733454544,-500.0,0.00014258,2]
[338559082,1726733454553,-513.77,0.00014258,2]
[338559083,1726733454563,-158.99731025,0.00014258,2]
[338559084,1726733454572,-500.0,0.00014258,2]
[338559085,1726733454582,-500.0,0.00014258,2]
[338559086,1726733454592,-500.0,0.00014258,2]
[338559087,1726733454601,-536.2,0.00014258,2]
[338559088,1726733454610,-500.0,0.00014258,2]
[338559089,1726733454620,-500.0,0.00014258,2]
[338559090,1726733454630,-500.0,0.00014258,2]
[338559091,1726733454642,-500.0,0.00014258,2]
[338559092,1726733454652,-500.0,0.00014258,2]
[338559093,1726733454662,-642.0,0.00014258,2]
[338559094,1726733454672,-500.0,0.00014258,2]
[338559095,1726733454682,-878.46,0.00014258,2]
[338559096,1726733454691,-500.0,0.00014258,2]
[338559097,1726733454701,-500.0,0.00014258,2]
[338559098,1726733454712,-500.0,0.00014258,2]
[338559099,1726733454721,-500.0,0.00014258,2]
[338559100,1726733454731,-500.0,0.00014258,2]
[338559101,1726733454741,-212.14128562,0.00014258,2]
[338559102,1726733454750,-500.0,0.00014258,2]
[338559103,1726733454760,-512.2,0.00014258,2]
[338559104,1726733454769,-738.29,0.00014258,2]
[338559105,1726733454779,-954.14,0.00014258,2]
[338559106,1726733454789,-500.0,0.00014258,2]
[338559107,1726733454803,-500.0,0.00014258,2]
[338559108,1726733454812,-500.0,0.00014258,2]
[338559109,1726733454822,-500.0,0.00014258,2]
[338559110,1726733454831,-897.37,0.00014258,2]
[338559111,1726733454841,-500.0,0.00014258,2]
[338559112,1726733454851,-500.0,0.00014258,2]
[338559113,1726733454861,-500.0,0.00014258,2]
[338559114,1726733454870,-695.2,0.00014258,2]
[338559115,1726733454880,-522.46,0.00014258,2]
[338559116,1726733454890,-500.0,0.00014258,2]
[338559117,1726733454900,-868.83,0.00014258,2]
[338559118,1726733454910,-500.0,0.00014258,2]
[338559119,1726733454919,-500.0,0.00014258,2]
[338559120,1726733454929,-500.0,0.00014258,2]
[338559121,1726733454939,-1326.93,0.00014258,2]
[338559122,1726733454949,-674.02,0.00014258,2]
[338559123,1726733454959,-500.0,0.00014258,2]
[338559124,1726733454969,-500.0,0.00014258,2]
[338559125,1726733454978,-500.0,0.00014258,2]
[338559126,1726733454988,-500.0,0.00014258,2]
[338559127,1726733454998,-1881.36,0.00014258,2]
[338559128,1726733455008,-500.0,0.00014258,2]
[338559129,1726733455018,-500.0,0.00014258,2]
[338559130,1726733455027,-627.83,0.00014258,2]
[338559131,1726733455037,-500.0,0.00014258,2]
[338559132,1726733455052,-525.93,0.00014258,2]
[338559133,1726733455066,-507.37,0.00014258,2]
[338559134,1726733455075,-500.0,0.00014258,2]
[338559135,1726733455085,-500.0,0.00014258,2]
[338559136,1726733455095,-537.85,0.00014258,2]
[338559137,1726733455105,-500.0,0.00014258,2]
[338559138,1726733455115,-706.39,0.00014258,2]
[338559139,1726733455124,-451.72952763,0.00014258,2]
[338559140,1726733455134,-500.0,0.00014258,2]
[338559141,1726733455143,-700.0,0.00014258,2]
[338559142,1726733455153,-500.0,0.00014258,2]
[338559143,1726733455163,-526.9271141,0.00014258,2]
[338559144,1726733455172,-1720.07,0.00014258,2]
[338559145,1726733455182,-500.0,0.00014258,2]
[338559146,1726733455192,-616.49,0.00014258,2]
[338559147,1726733455202,-341.37622499,0.00014258,2]
[338559148,1726733455212,-906.75,0.00014258,2]
[338559149,1726733455222,-500.0,0.00014258,2]
[338559150,1726733455231,-500.0,0.00014258,2]
[338559151,1726733455242,-642.85,0.00014258,2]
[338559152,1726733455251,-500.0,0.00014258,2]
[338559153,1726733455261,-500.0,0.00014259,2]
[338559154,1726733455271,-500.0,0.00014259,2]
[338559155,1726733455281,-500.0,0.00014259,2]
[338559156,1726733455291,-500.0,0.00014259,2]
[338559157,1726733455303,-500.0,0.00014259,2]
[338559158,1726733455312,-800.0,0.00014278,2]
[338559159,1726733455323,-169.53591188,0.00014287,2]